[Event "FIDE WYCC Open U14 2023"]
[Site "Montesilvano"]
[Date "2023.11.20"]
[Round "7.15"]
[White "Dumanuly, Sultanbeibarys"]
[Black "Nurgaliyev, Sauat"]
[Result "*"]
[ECO "B53"]
[WhiteElo "1931"]
[BlackElo "2235"]
[Annotator "RC"]
[PlyCount "63"]
[EventDate "2023.11.13"]
[EventType "swiss"]
[EventCountry "ITA"]
[SourceTitle "playchess.com"]
[Source "ChessBase"]
[SourceQuality "1"]
[TimeControl "40/5400+30:1800+30"]

1. e4 {[%emt 0:00:01]} c5 {[%emt 0:00:15]} 2. Nf3 {[%emt 0:00:02]} d6 {[%emt 0:00:08]} 3. d4 {[%emt 0:00:06]} cxd4 {[%emt 0:00:09]} 4. Qxd4 {[%emt 0:00:04]} Nf6 {[%emt 0:00:23]} 5. Nc3 {[%emt 0:00:06]} Nc6 {[%emt 0:01:06]} 6. Qd3 {[%emt 0:00:07]} g6 {[%emt 0:03:19]} 7. Be2 {[%emt 0:00:09]} Bg7 {[%emt 0:01:56]} 8. O-O {[%emt 0:00:09]} O-O {[%emt 0:03:18]} 9. Nd5 {[%emt 0:00:09]} Nxd5 {[%emt 0:10:25]} 10. exd5 {[%emt 0:00:07]} Nb4 {[%emt 0:00:02]} 11. Qd1 {[%emt 0:00:09]} Bf5 {[%emt 0:09:58]} 12. c3 {[%emt 0:00:22]} Na6 {[%emt 0:05:26]} 13. a4 {[%emt 0:17:47]} Nc5 {[%emt 0:02:42]} 14. a5 {[%emt 0:04:03]} Qc8 {[%emt 0:13:21]} 15. Be3 {[%emt 0:24:29]} Ne4 {[%emt 0:03:20]} 16. Ra4 {[%emt 0:06:15]} Nf6 {[%emt 0:01:23]} 17. Bd4 {[%emt 0:03:33]} Qc7 {[%emt 0:09:08]} 18. Qb3 {[%emt 0:05:45]} Bd7 {[%emt 0:04:29]} 19. Rb4 {[%emt 0:02:50]} Qxa5 {[%emt 0:08:31]} 20. Rxb7 {[%emt 0:00:26]} Bc8 {[%emt 0:04:37]} 21. Rb5 {[%emt 0:02:52]} Qc7 {[%emt 0:02:44]} 22. Ra1 {[%emt 0:01:16]} Ne4 {[%emt 0:03:06]} 23. Bb6 {[%emt 0:04:14]} Qd7 {[%emt 0:01:41]} 24. Rba5 {[%emt 0:02:19]} Qb7 {[%emt 0:02:10]} 25. Rxa7 {[%emt 0:08:31]} Nc5 {[%emt 0:00:04]} 26. Qa2 {[%emt 0:01:14]} Rxa7 {[%emt 0:01:32]} 27. Qxa7 {[%emt 0:07:45]} Qxd5 {[%emt 0:00:22]} 28. Bxc5 {[%emt 0:00:57]} dxc5 {[%emt 0:00:52]} 29. Ra5 {[%emt 0:01:42]} Qe4 {[%emt 0:01:05]} 30. Bf1 {[%emt 0:00:27]} Qb1 {[%emt 0:01:05]} 31. Qxe7 {[%emt 0:03:31]} Qxb2 {[%emt 0:01:29]} 32. Qxc5 {[%emt 0:02:39]} *

[Event "FIDE WYCC Open U14 2023"]
[Site "Montesilvano"]
[Date "2023.11.20"]
[Round "7.16"]
[White "Zhang, Brian"]
[Black "Brattgjerd, Isak Vinh"]
[Result "0-1"]
[ECO "B13"]
[WhiteElo "1867"]
[BlackElo "2235"]
[Annotator "RC"]
[PlyCount "156"]
[EventDate "2023.11.13"]
[EventType "swiss"]
[EventCountry "ITA"]
[SourceTitle "playchess.com"]
[Source "ChessBase"]
[SourceQuality "1"]
[TimeControl "40/5400+30:1800+30"]

1. e4 {[%emt 0:00:05]} c6 {[%emt 0:00:03]} 2. d4 {[%emt 0:00:23]} d5 {[%emt 0:00:04]} 3. exd5 {[%emt 0:00:39]} cxd5 {[%emt 0:00:00]} 4. Bd3 {[%emt 0:00:28]} Nc6 {[%emt 0:00:04]} 5. c3 {[%emt 0:00:18]} Nf6 {[%emt 0:00:03]} 6. Bf4 {[%emt 0:01:03]} Bg4 {[%emt 0:00:05]} 7. Qb3 {[%emt 0:00:55]} e5 {[%emt 0:00:12]} 8. dxe5 {[%emt 0:09:01]} Nh5 {[%emt 0:01:59]} 9. Be3 {[%emt 0:01:08]} Nxe5 {[%emt 0:00:11]} 10. Bb5+ {[%emt 0:01:41]} Nc6 {[%emt 0:00:20]} 11. Be2 {[%emt 0:02:44]} Bxe2 {[%emt 0:01:21]} 12. Nxe2 {[%emt 0:00:51]} Qd7 {[%emt 0:01:11]} 13. Nd2 {[%emt 0:09:13]} Be7 {[%emt 0:01:35]} 14. Nf3 {[%emt 0:08:05]} O-O {[%emt 0:00:29]} 15. O-O {[%emt 0:03:15]} Rad8 {[%emt 0:02:20]} 16. Rad1 {[%emt 0:04:31]} Na5 {[%emt 0:15:39]} 17. Qc2 {[%emt 0:01:52]} Nc4 {[%emt 0:00:31]} 18. Bg5 {[%emt 0:11:24]} Bxg5 {[%emt 0:08:02]} 19. Nxg5 {[%emt 0:00:18]} Nf6 {[%emt 0:00:14]} 20. Nf3 {[%emt 0:07:35]} Rfe8 {[%emt 0:01:54]} 21. Rfe1 {[%emt 0:04:43]} Nd6 {[%emt 0:17:41]} 22. Nf4 {[%emt 0:04:03]} Rxe1+ {[%emt 0:01:06]} 23. Rxe1 {[%emt 0:03:50]} Nde4 {[%emt 0:00:47]} 24. Nd4 {[%emt 0:03:45]} Qd6 {[%emt 0:09:52]} 25. g3 {[%emt 0:05:22]} g6 {[%emt 0:03:05]} 26. f3 {[%emt 0:02:19]} Nc5 {[%emt 0:01:04]} 27. Kg2 {[%emt 0:01:00]} a6 {[%emt 0:07:38]} 28. Qd2 {[%emt 0:04:27]} Ncd7 {[%emt 0:03:36]} 29. Nd3 {[%emt 0:03:33]} Qc7 {[%emt 0:07:32]} 30. Qg5 {[%emt 0:01:35]} Kf8 {[%emt 0:11:10]} 31. Nf4 {[%emt 0:01:52]} Qb6 {[%emt 0:01:07]} 32. Re2 {[%emt 0:02:04]} Re8 {[%emt 0:00:10]} 33. Rxe8+ {[%emt 0:02:17]} Kxe8 {[%emt 0:00:05]} 34. Nd3 {[%emt 0:00:39]} Qa5 {[%emt 0:01:30]} 35. Qd2 {[%emt 0:00:28]} Qxa2 {[%emt 0:01:04]} 36. Nb4 {[%emt 0:00:31]} Qc4 {[%emt 0:01:39]} 37. Ne2 {[%emt 0:00:29]} a5 {[%emt 0:01:15]} 38. Nc2 {[%emt 0:00:20]} Kf8 {[%emt 0:01:24]} 39. Nf4 {[%emt 0:00:34]} Qc5 {[%emt 0:00:41]} 40. Ne3 {[%emt 0:00:00]} Nb6 {[%emt 0:00:00]} 41. b3 {[%emt 0:11:36]} Kg7 {[%emt 0:11:31]} 42. g4 {[%emt 0:03:32]} h6 {[%emt 0:04:20]} 43. h4 {[%emt 0:01:43]} a4 {[%emt 0:10:00]} 44. bxa4 {[%emt 0:02:55]} Nc4 {[%emt 0:01:20]} 45. Nxc4 {[%emt 0:00:46]} dxc4 {[%emt 0:00:12]} 46. Qf2 {[%emt 0:06:48]} Qe5 {[%emt 0:00:38]} 47. Qd4 {[%emt 0:00:57]} Qxd4 {[%emt 0:00:14]} 48. cxd4 {[%emt 0:00:07]} g5 {[%emt 0:00:31]} 49. hxg5 {[%emt 0:00:55]} hxg5 {[%emt 0:00:01]} 50. Ne2 {[%emt 0:00:19]} Nd5 {[%emt 0:00:10]} 51. Kf2 {[%emt 0:00:34]} Kf6 {[%emt 0:01:29]} 52. Ke1 {[%emt 0:01:09]} Ke6 {[%emt 0:01:58]} 53. Kd2 {[%emt 0:01:07]} Kd6 {[%emt 0:00:43]} 54. Ng3 {[%emt 0:02:09]} Nf4 {[%emt 0:03:42]} 55. Ne4+ {[%emt 0:02:29]} Kd5 {[%emt 0:00:01]} 56. Nxg5 {[%emt 0:00:52]} f6 {[%emt 0:00:23]} 57. Ne4 {[%emt 0:00:33]} Kxd4 {[%emt 0:00:02]} 58. Nc3 {[%emt 0:01:04]} Nd3 {[%emt 0:00:29]} 59. Ne2+ {[%emt 0:00:20]} Kc5 {[%emt 0:00:10]} 60. Kc3 {[%emt 0:00:22]} Nf2 {[%emt 0:00:36]} 61. Ng3 {[%emt 0:00:34]} Nd1+ {[%emt 0:00:58]} 62. Kd2 {[%emt 0:00:40]} Nb2 {[%emt 0:00:02]} 63. Ne4+ {[%emt 0:00:30]} Kb4 {[%emt 0:00:01]} 64. Nxf6 {[%emt 0:00:30]} Kb3 {[%emt 0:00:33]} 65. Nd5 {[%emt 0:00:35]} Nxa4 {[%emt 0:00:12]} 66. g5 {[%emt 0:00:19]} c3+ {[%emt 0:00:40]} 67. Kc1 {[%emt 0:00:29]} Nc5 {[%emt 0:00:17]} 68. Ne3 {[%emt 0:00:39]} Nd3+ {[%emt 0:00:24]} 69. Kd1 {[%emt 0:00:33]} Nf4 {[%emt 0:00:20]} 70. Nc2 {[%emt 0:00:32]} Kb2 {[%emt 0:00:30]} 71. Nd4 {[%emt 0:00:30]} Ne6 {[%emt 0:00:51]} 72. Nc2 {[%emt 0:00:29]} Nxg5 {[%emt 0:00:05]} 73. f4 {[%emt 0:00:18]} Ne4 {[%emt 0:00:48]} 74. f5 {[%emt 0:00:39]} b5 {[%emt 0:00:43]} 75. Nb4 {[%emt 0:00:33]} Kb3 {[%emt 0:00:13]} 76. Nc2 {[%emt 0:00:27]} b4 {[%emt 0:00:11]} 77. Nd4+ {[%emt 0:00:34]} Kb2 {[%emt 0:00:06]} 78. f6 {[%emt 0:00:27]} Nxf6 {[%emt 0:00:08]} 0-1

[Event "FIDE WYCC Open U14 2023"]
[Site "Montesilvano"]
[Date "2023.11.20"]
[Round "7.17"]
[White "Gkavardinas, Antonios"]
[Black "Lin, Leo"]
[Result "1-0"]
[ECO "B67"]
[WhiteElo "2230"]
[BlackElo "2097"]
[Annotator "RC"]
[PlyCount "73"]
[EventDate "2023.11.13"]
[EventType "swiss"]
[EventCountry "ITA"]
[SourceTitle "playchess.com"]
[Source "ChessBase"]
[SourceQuality "1"]
[TimeControl "40/5400+30:1800+30"]

1. e4 {[%emt 0:00:03]} c5 {[%emt 0:00:26]} 2. Nf3 {[%emt 0:00:07]} d6 {[%emt 0:00:08]} 3. d4 {[%emt 0:00:06]} cxd4 {[%emt 0:00:06]} 4. Nxd4 {[%emt 0:00:08]} Nf6 {[%emt 0:00:19]} 5. Nc3 {[%emt 0:00:04]} Nc6 {[%emt 0:00:14]} 6. Bg5 {[%emt 0:00:31]} e6 {[%emt 0:00:10]} 7. Qd2 {[%emt 0:00:22]} a6 {[%emt 0:00:13]} 8. O-O-O {[%emt 0:00:26]} Bd7 {[%emt 0:00:07]} 9. f4 {[%emt 0:00:34]} b5 {[%emt 0:00:07]} 10. Bxf6 {[%emt 0:02:12]} gxf6 {[%emt 0:00:08]} 11. f5 {[%emt 0:00:51]} Nxd4 {[%emt 0:00:10]} 12. Qxd4 {[%emt 0:00:10]} Bh6+ {[%emt 0:00:04]} 13. Kb1 {[%emt 0:00:28]} Bf4 {[%emt 0:00:02]} 14. Ne2 {[%emt 0:07:39]} Be5 {[%emt 0:00:24]} 15. Qe3 {[%emt 0:01:40]} Qc7 {[%emt 0:01:48]} 16. Nf4 {[%emt 0:10:31]} Rc8 {[%emt 0:10:56]} 17. Rd2 {[%emt 0:05:11]} b4 {[%emt 0:13:32]} 18. Nd3 {[%emt 0:06:06]} Ba4 {[%emt 0:08:16]} 19. Nxe5 {[%emt 0:06:24]} Bxc2+ {[%emt 0:00:21]} 20. Ka1 {[%emt 0:00:07]} fxe5 {[%emt 0:08:15]} 21. Bxa6 {[%emt 0:08:51]} Qc5 {[%emt 0:06:37]} 22. Rxc2 {[%emt 0:24:18]} Qxc2 {[%emt 0:02:02]} 23. Bxc8 {[%emt 0:00:35]} Qxc8 {[%emt 0:00:03]} 24. Rc1 {[%emt 0:00:37]} Qd7 {[%emt 0:02:43]} 25. f6 {[%emt 0:01:55]} Qb7 {[%emt 0:06:36]} 26. Qb3 {[%emt 0:02:14]} Rg8 {[%emt 0:18:20]} 27. Qa4+ {[%emt 0:07:32]} Kd8 {[%emt 0:00:20]} 28. Rc6 {[%emt 0:03:01]} Qb8 {[%emt 0:09:33]} 29. Qa5+ {[%emt 0:01:28]} Kd7 {[%emt 0:05:52]} 30. Rb6 {[%emt 0:00:49]} Qa8 {[%emt 0:01:16]} 31. Qb5+ {[%emt 0:03:27]} Kc7 {[%emt 0:03:22]} 32. Ra6 {[%emt 0:00:25]} Qb7 {[%emt 0:03:09]} 33. Qa5+ {[%emt 0:00:13]} Kb8 {[%emt 0:00:47]} 34. Rb6 {[%emt 0:00:11]} Rxg2 {[%emt 0:00:02]} 35. Rxb7+ {[%emt 0:00:15]} Kxb7 {[%emt 0:00:43]} 36. Qxb4+ {[%emt 0:00:09]} Kc7 {[%emt 0:00:04]} 37. a4 {[%emt 0:00:12]} 1-0

[Event "FIDE WYCC Open U14 2023"]
[Site "Montesilvano"]
[Date "2023.11.20"]
[Round "7.18"]
[White "Katsanis, Vasileios Dim"]
[Black "Asikainen, Eeli"]
[Result "1/2-1/2"]
[ECO "E91"]
[WhiteElo "2173"]
[BlackElo "2081"]
[Annotator "RC"]
[PlyCount "103"]
[EventDate "2023.11.13"]
[EventType "swiss"]
[EventCountry "ITA"]
[SourceTitle "playchess.com"]
[Source "ChessBase"]
[SourceQuality "1"]
[TimeControl "40/5400+30:1800+30"]

1. d4 {[%emt 0:00:04]} Nf6 {[%emt 0:00:06]} 2. c4 {[%emt 0:00:05]} g6 {[%emt 0:00:10]} 3. Nc3 {[%emt 0:00:05]} Bg7 {[%emt 0:00:04]} 4. e4 {[%emt 0:00:05]} d6 {[%emt 0:00:05]} 5. Nf3 {[%emt 0:00:03]} O-O {[%emt 0:00:09]} 6. Be2 {[%emt 0:00:03]} Nbd7 {[%emt 0:00:10]} 7. Be3 {[%emt 0:01:22]} e5 {[%emt 0:00:08]} 8. d5 {[%emt 0:00:24]} Ng4 {[%emt 0:00:34]} 9. Bg5 {[%emt 0:00:23]} f6 {[%emt 0:00:13]} 10. Bh4 {[%emt 0:00:35]} Nh6 {[%emt 0:00:29]} 11. Nd2 {[%emt 0:00:52]} g5 {[%emt 0:00:35]} 12. Bg3 {[%emt 0:00:03]} f5 {[%emt 0:00:32]} 13. f3 {[%emt 0:00:59]} Nf6 {[%emt 0:18:49]} 14. Bf2 {[%emt 0:24:10]} g4 {[%emt 0:19:28]} 15. exf5 {[%emt 0:02:15]} Bxf5 {[%emt 0:02:53]} 16. Nde4 {[%emt 0:21:32]} gxf3 {[%emt 0:04:36]} 17. Bxf3 {[%emt 0:03:20]} Nxe4 {[%emt 0:04:31]} 18. Bxe4 {[%emt 0:00:14]} Qg5 {[%emt 0:07:21]} 19. O-O {[%emt 0:02:35]} Ng4 {[%emt 0:02:21]} 20. Qd3 {[%emt 0:02:23]} Bh6 {[%emt 0:08:35]} 21. Rae1 {[%emt 0:13:02]} Bxe4 {[%emt 0:10:20]} 22. Nxe4 {[%emt 0:00:59]} Qg6 {[%emt 0:00:47]} 23. h3 {[%emt 0:11:10]} Nxf2 {[%emt 0:02:04]} 24. Rxf2 {[%emt 0:00:10]} Rxf2 {[%emt 0:03:39]} 25. Nxf2 {[%emt 0:00:11]} Qxd3 {[%emt 0:04:35]} 26. Nxd3 {[%emt 0:00:02]} Rf8 {[%emt 0:00:28]} 27. Re4 {[%emt 0:01:23]} Rf5 {[%emt 0:00:56]} 28. b4 {[%emt 0:01:39]} Kf7 {[%emt 0:02:01]} 29. a4 {[%emt 0:01:28]} Ke7 {[%emt 0:02:12]} 30. Re2 {[%emt 0:02:06]} Bg5 {[%emt 0:01:50]} 31. a5 {[%emt 0:01:16]} h6 {[%emt 0:01:13]} 32. b5 {[%emt 0:03:08]} Bf4 {[%emt 0:00:46]} 33. g4 {[%emt 0:01:21]} Rf8 {[%emt 0:00:24]} 34. Kg2 {[%emt 0:00:11]} Kd7 {[%emt 0:00:49]} 35. Nb4 {[%emt 0:02:34]} Bc1 {[%emt 0:00:57]} 36. Rf2 {[%emt 0:01:01]} Rxf2+ 37. Kxf2 {[%emt 0:00:01]} Bd2 {[%emt 0:02:10]} 38. a6 {[%emt 0:00:12]} bxa6 {[%emt 0:00:37]} 39. Nxa6 {[%emt 0:00:10]} Kc8 {[%emt 0:01:05]} 40. Kf3 {[%emt 0:00:00]} Be1 {[%emt 0:00:00]} 41. Ke4 {[%emt 0:04:14]} Kb7 {[%emt 0:02:12]} 42. Kf5 {[%emt 0:00:37]} Bh4 {[%emt 0:06:16]} 43. Ke4 {[%emt 0:04:01]} Be1 {[%emt 0:01:01]} 44. Kd3 {[%emt 0:00:12]} Kc8 {[%emt 0:01:21]} 45. c5 {[%emt 0:01:35]} Kb7 {[%emt 0:09:10]} 46. Kc4 {[%emt 0:10:18]} Bf2 {[%emt 0:03:45]} 47. cxd6 {[%emt 0:07:49]} cxd6 {[%emt 0:00:06]} 48. Nb4 {[%emt 0:00:10]} Kb6 {[%emt 0:03:48]} 49. Na2 {[%emt 0:03:28]} e4 {[%emt 0:04:28]} 50. Nc3 {[%emt 0:00:02]} e3 {[%emt 0:00:09]} 51. Ne2 {[%emt 0:00:06]} Bh4 {[%emt 0:00:32]} 52. Nd4 {[%emt 0:00:57]} 1/2-1/2

[Event "FIDE WYCC Open U14 2023"]
[Site "Montesilvano"]
[Date "2023.11.20"]
[Round "7.19"]
[White "Sodbilegt, Naranbold"]
[Black "Morkunas, Gustas"]
[Result "1/2-1/2"]
[ECO "C44"]
[WhiteElo "2151"]
[BlackElo "2052"]
[Annotator "RC"]
[PlyCount "65"]
[EventDate "2023.11.13"]
[EventType "swiss"]
[EventCountry "ITA"]
[SourceTitle "playchess.com"]
[Source "ChessBase"]
[SourceQuality "1"]
[TimeControl "40/5400+30:1800+30"]

1. e4 {[%emt 0:00:02]} e5 {[%emt 0:00:08]} 2. Nf3 {[%emt 0:00:14]} Nc6 {[%emt 0:00:09]} 3. d4 {[%emt 0:01:01]} exd4 {[%emt 0:00:24]} 4. Nxd4 {[%emt 0:00:16]} Nf6 {[%emt 0:00:08]} 5. Nxc6 {[%emt 0:01:35]} bxc6 {[%emt 0:00:10]} 6. Nc3 {[%emt 0:05:01]} Bb4 {[%emt 0:03:50]} 7. Bd3 {[%emt 0:00:28]} d5 {[%emt 0:01:30]} 8. exd5 {[%emt 0:02:29]} cxd5 {[%emt 0:01:09]} 9. O-O {[%emt 0:01:26]} O-O {[%emt 0:00:30]} 10. Bg5 {[%emt 0:00:23]} c6 {[%emt 0:00:42]} 11. Na4 {[%emt 0:09:50]} Be6 {[%emt 0:06:03]} 12. Rc1 {[%emt 0:05:31]} h6 {[%emt 0:07:54]} 13. Bh4 {[%emt 0:01:01]} Be7 {[%emt 0:02:54]} 14. c4 {[%emt 0:05:29]} Nd7 {[%emt 0:13:40]} 15. Bxe7 {[%emt 0:03:52]} Qxe7 {[%emt 0:00:21]} 16. cxd5 {[%emt 0:02:25]} cxd5 {[%emt 0:00:48]} 17. f4 {[%emt 0:12:39]} Nf6 {[%emt 0:06:14]} 18. Nc5 {[%emt 0:04:26]} Rab8 {[%emt 0:10:43]} 19. Re1 {[%emt 0:08:02]} Qd6 {[%emt 0:03:58]} 20. Qd2 {[%emt 0:07:33]} Qb6 {[%emt 0:05:45]} 21. f5 {[%emt 0:03:39]} Bd7 {[%emt 0:01:44]} 22. Rc2 {[%emt 0:01:09]} Bb5 {[%emt 0:05:50]} 23. Bxb5 {[%emt 0:05:34]} Qxb5 {[%emt 0:00:20]} 24. Qd3 {[%emt 0:04:00]} Qb4 {[%emt 0:07:28]} 25. Ree2 {[%emt 0:02:41]} Qb6 {[%emt 0:03:55]} 26. Qd4 {[%emt 0:01:27]} Rfe8 {[%emt 0:00:58]} 27. h3 {[%emt 0:02:54]} Qd6 {[%emt 0:07:40]} 28. Rcd2 {[%emt 0:02:53]} Qg3 {[%emt 0:01:54]} 29. Qf2 {[%emt 0:01:55]} Qd6 {[%emt 0:01:10]} 30. Qd4 {[%emt 0:00:30]} Qg3 {[%emt 0:00:58]} 31. Qf2 {[%emt 0:00:21]} Qd6 {[%emt 0:00:24]} 32. Qd4 {[%emt 0:00:27]} Qg3 {[%emt 0:01:42]} 33. Qf2 {[%emt 0:01:19]} 1/2-1/2

[Event "FIDE WYCC Open U14 2023"]
[Site "Montesilvano"]
[Date "2023.11.20"]
[Round "7.20"]
[White "kiladze, Luka"]
[Black "Davudov, Tunar"]
[Result "0-1"]
[ECO "A33"]
[WhiteElo "2145"]
[BlackElo "2000"]
[Annotator "RC"]
[PlyCount "140"]
[EventDate "2023.11.13"]
[EventType "swiss"]
[EventCountry "ITA"]
[SourceTitle "playchess.com"]
[Source "ChessBase"]
[SourceQuality "1"]
[TimeControl "40/5400+30:1800+30"]

1. d4 {[%emt 0:00:01]} Nf6 {[%emt 0:00:19]} 2. c4 {[%emt 0:00:06]} c5 {[%emt 0:00:47]} 3. Nf3 {[%emt 0:01:06]} e6 {[%emt 0:01:24]} 4. Nc3 {[%emt 0:00:37]} cxd4 {[%emt 0:11:17]} 5. Nxd4 {[%emt 0:00:21]} Nc6 {[%emt 0:02:45]} 6. Nc2 {[%emt 0:00:37]} d5 {[%emt 0:06:39]} 7. cxd5 {[%emt 0:05:33]} exd5 {[%emt 0:01:31]} 8. e3 {[%emt 0:03:08]} Bc5 {[%emt 0:07:06]} 9. Be2 {[%emt 0:02:10]} O-O {[%emt 0:04:42]} 10. O-O {[%emt 0:01:29]} a6 {[%emt 0:14:08]} 11. Bf3 {[%emt 0:05:08]} Be6 {[%emt 0:08:52]} 12. b3 {[%emt 0:06:13]} Ne5 {[%emt 0:10:46]} 13. Be2 {[%emt 0:10:59]} Nc6 {[%emt 0:13:03]} 14. Bb2 {[%emt 0:02:35]} Rc8 {[%emt 0:01:26]} 15. Rc1 {[%emt 0:01:21]} Qe7 {[%emt 0:03:56]} 16. Na4 {[%emt 0:05:41]} Bd6 {[%emt 0:00:41]} 17. Nd4 {[%emt 0:07:47]} Ne5 {[%emt 0:03:06]} 18. Nf3 {[%emt 0:01:43]} Ned7 {[%emt 0:02:25]} 19. Rxc8 {[%emt 0:06:43]} Rxc8 {[%emt 0:00:08]} 20. Qd4 {[%emt 0:01:24]} b5 {[%emt 0:03:26]} 21. Nc3 {[%emt 0:00:09]} Ba3 {[%emt 0:01:08]} 22. Ba1 {[%emt 0:00:13]} Bc5 {[%emt 0:01:03]} 23. Qd3 {[%emt 0:01:04]} Bb4 {[%emt 0:00:36]} 24. Rd1 {[%emt 0:16:03]} Nc5 {[%emt 0:00:31]} 25. Qd4 {[%emt 0:02:49]} Nce4 {[%emt 0:00:35]} 26. Nxe4 {[%emt 0:02:27]} dxe4 {[%emt 0:00:07]} 27. Ne5 {[%emt 0:00:27]} Ba5 {[%emt 0:01:00]} 28. h3 {[%emt 0:02:29]} Rc2 {[%emt 0:00:28]} 29. Bg4 {[%emt 0:01:17]} h5 {[%emt 0:00:19]} 30. Bxe6 {[%emt 0:02:38]} Qxe6 {[%emt 0:00:06]} 31. a4 {[%emt 0:01:33]} Bb6 {[%emt 0:00:56]} 32. Qb4 {[%emt 0:01:25]} Nd5 {[%emt 0:00:18]} 33. Qxe4 {[%emt 0:01:05]} Rc5 {[%emt 0:00:43]} 34. a5 {[%emt 0:02:59]} Bxa5 {[%emt 0:00:29]} 35. Qd4 {[%emt 0:01:18]} Nc3 {[%emt 0:00:30]} 36. Bxc3 {[%emt 0:01:46]} Rxc3 {[%emt 0:00:10]} 37. Ra1 {[%emt 0:01:42]} Bc7 {[%emt 0:00:41]} 38. Nf3 {[%emt 0:01:20]} Rc6 {[%emt 0:00:44]} 39. g3 {[%emt 0:00:50]} Qxb3 {[%emt 0:00:31]} 40. Qa7 {[%emt 0:00:00]} Qc3 {[%emt 0:00:00]} 41. Rxa6 {[%emt 0:05:04]} Rxa6 {[%emt 0:07:39]} 42. Qxa6 {[%emt 0:00:05]} Qc5 {[%emt 0:12:44]} 43. h4 {[%emt 0:01:16]} Bd6 {[%emt 0:02:52]} 44. Qa8+ {[%emt 0:04:51]} Bf8 {[%emt 0:00:10]} 45. Qb7 {[%emt 0:02:07]} b4 46. Nd4 {[%emt 0:01:39]} g6 {[%emt 0:02:07]} 47. Kg2 {[%emt 0:01:06]} Qc4 {[%emt 0:02:20]} 48. Nf3 {[%emt 0:01:17]} Kg7 {[%emt 0:01:27]} 49. e4 {[%emt 0:04:31]} Bc5 {[%emt 0:03:14]} 50. Ne5 {[%emt 0:01:07]} Qe6 {[%emt 0:01:58]} 51. Nd3 {[%emt 0:00:40]} Bf8 {[%emt 0:00:18]} 52. e5 {[%emt 0:02:24]} Kg8 {[%emt 0:01:42]} 53. Qb5 {[%emt 0:02:07]} Qf5 {[%emt 0:00:33]} 54. Qd5 {[%emt 0:00:53]} Qe6 {[%emt 0:00:18]} 55. Qb5 {[%emt 0:05:35]} Qf5 {[%emt 0:00:43]} 56. Qd5 {[%emt 0:01:37]} Qe6 {[%emt 0:00:30]} 57. Qb5 {[%emt 0:01:11]} Kg7 {[%emt 0:00:21]} 58. Nf4 {[%emt 0:01:04]} Qf5 {[%emt 0:00:07]} 59. Qd5 {[%emt 0:00:12]} Be7 {[%emt 0:00:26]} 60. Ne2 {[%emt 0:01:27]} Qe6 {[%emt 0:00:50]} 61. Qb5 {[%emt 0:01:07]} Qc8 {[%emt 0:00:38]} 62. f4 {[%emt 0:00:46]} Qc2 {[%emt 0:00:21]} 63. Kh3 {[%emt 0:00:38]} b3 {[%emt 0:00:19]} 64. Nd4 {[%emt 0:00:50]} Qe4 {[%emt 0:00:15]} 65. Kh2 {[%emt 0:00:21]} Qxd4 {[%emt 0:00:06]} 66. Qxb3 {[%emt 0:00:05]} Qf2+ {[%emt 0:00:07]} 67. Kh3 {[%emt 0:00:12]} Qf1+ {[%emt 0:00:04]} 68. Kh2 {[%emt 0:00:22]} Bc5 {[%emt 0:00:11]} 69. Qd5 {[%emt 0:01:32]} Bg1+ {[%emt 0:00:07]} 70. Kh1 {[%emt 0:00:05]} Bf2+ {[%emt 0:00:04]} 0-1

[Event "FIDE WYCC Open U14 2023"]
[Site "Montesilvano"]
[Date "2023.11.20"]
[Round "7.21"]
[White "Malinowsky, Levi"]
[Black "Radzimski, Antoni"]
[Result "0-1"]
[ECO "B10"]
[WhiteElo "2135"]
[BlackElo "1904"]
[Annotator "NA RC"]
[PlyCount "74"]
[EventDate "2023.11.13"]
[EventType "swiss"]
[EventCountry "ITA"]
[SourceTitle "playchess.com"]
[Source "ChessBase"]
[SourceQuality "1"]
[TimeControl "40/5400+30:1800+30"]

1. e4 {[%emt 0:00:03]} c6 {[%emt 0:00:29]} 2. Nf3 {[%emt 0:00:10]} d5 {[%emt 0:00:06]} 3. d3 {[%emt 0:00:11]} Qc7 {[%emt 0:03:17]} 4. Qe2 {[%emt 0:03:04]} Bg4 {[%emt 0:02:26]} 5. Nbd2 {[%emt 0:01:18]} Nd7 {[%emt 0:02:22]} 6. h3 {[%emt 0:03:56]} Bh5 {[%emt 0:00:33]} 7. g4 {[%emt 0:01:16]} Bg6 {[%emt 0:01:11]} 8. Bg2 {[%emt 0:01:18]} e5 {[%emt 0:09:00]} 9. O-O {[%emt 0:03:56]} Bd6 {[%emt 0:02:32]} 10. d4 {[%emt 0:09:19]} dxe4 {[%emt 0:08:03]} 11. Nh4 {[%emt 0:03:25]} O-O-O {[%emt 0:09:06]} 12. Nxg6 {[%emt 0:01:16]} hxg6 {[%emt 0:00:40]} 13. dxe5 {[%emt 0:03:02]} Bxe5 {[%emt 0:02:34]} 14. Nxe4 {[%emt 0:02:10]} Ne7 {[%emt 0:05:19]} 15. Qf3 {[%emt 0:06:27]} f6 {[%emt 0:05:19]} 16. Qa3 {[%emt 0:03:20]} Nb6 {[%emt 0:09:18]} 17. Qxa7 {[%emt 0:02:17]} Ned5 {[%emt 0:00:44]} 18. c3 {[%emt 0:04:45]} f5 {[%emt 0:03:12]} 19. gxf5 {[%emt 0:08:14]} gxf5 {[%emt 0:00:27]} 20. Nc5 {[%emt 0:01:20]} Qe7 {[%emt 0:03:51]} 21. Nd3 {[%emt 0:04:49]} Bb8 {[%emt 0:01:09]} 22. Qa5 {[%emt 0:01:52]} Qd6 {[%emt 0:01:32]} 23. Rd1 {[%emt 0:09:22]} Qh2+ {[%emt 0:04:20]} 24. Kf1 {[%emt 0:00:07]} f4 {[%emt 0:00:52]} 25. Ne1 {[%emt 0:02:13]} Rxh3 {[%emt 0:02:41]} 26. Nf3 {[%emt 0:01:55]} Rxf3 {[%emt 0:00:07]} 27. Bxf3 {[%emt 0:00:14]} Qh3+ {[%emt 0:00:01]} 28. Bg2 {[%emt 0:00:22]} Qh5 {[%emt 0:00:02]} 29. Bxf4 {[%emt 0:04:18]} Bxf4 {[%emt 0:07:27]} 30. Kg1 {[%emt 0:03:11]} Bh2+ {[%emt 0:03:16]} 31. Kh1 {[%emt 0:00:10]} Bg3+ {[%emt 0:00:57]} 32. Kg1 {[%emt 0:00:09]} Qh2+ {[%emt 0:00:28]} 33. Kf1 {[%emt 0:00:07]} Ne3+ {[%emt 0:00:20]} 34. fxe3 {[%emt 0:00:22]} Rf8+ {[%emt 0:00:10]} 35. Ke2 {[%emt 0:00:08]} Qxg2+ {[%emt 0:00:03]} 36. Kd3 {[%emt 0:00:10]} Rd8+ {[%emt 0:00:03]} 37. Qd5 {[%emt 0:00:15]} Rxd5# {[%emt 0:00:08]} 0-1